Workbook

Sheet Початок
B1: ПРО ЦЕЙ ШАБЛОН
B2: За допомогою цього шаблону аналізу прибутковості ви можете відстежувати Активність клієнтів, Собівартість продажів та Інші витрати.
B3: Введіть у таблицю необхідні відомості, як-от Назва компанії та Дата.
B4: Значення в клітинках із формулами та в таблиці Зведені показники обчислюються автоматично. Діаграми оновлюють автоматично.
B5: Примітка.
B6: Додаткові вказівки наведено в стовпці A на кожному аркуші "Прибутковість клієнта". Цей текст приховано навмисно. Щоб вилучити текст, виберіть стовпець A й натисніть клавішу Delete. Щоб відобразити текст, виберіть стовпець A та змініть колір шрифту.
B7: Щоб дізнатися більше про таблиці на цьому аркуші, натисніть клавіші Shift+F10 у таблиці, виберіть "Таблиця", а потім – "Текст заміщення".

Sheet Прибутковість клієнта
A1: Аналіз прибутковості клієнтів на цьому аркуші. Корисні вказівки щодо роботи з цим аркушем наведено в клітинках у цьому стовпці. Клацніть стрілку вниз, щоб почати.
A2: У клітинку праворуч введіть Назва компанії. | B2: Назва компанії
A3: Заголовок цього аркуша наведено в клітинці праворуч. | B3: Аналіз прибутковості клієнтів
A4: У клітинку праворуч введіть Дата. | B4: Дата
A5: Пораду наведено в клітинці праворуч. | B5: Сірі клітинки обчислюються автоматично. Не потрібно нічого вводити в них.
A6: Введіть відомості в таблицю "Активність клієнтів", починаючи з клітинки праворуч. Подальші вказівки наведено в клітинці A12. | B6: Активність клієнтів: | C6: Ім’я сегмента 1 | D6: Ім’я сегмента 2 | E6: Ім’я сегмента 3 | F6: Загалом
B7: Кількість активних клієнтів – початок періоду | C7: 5 | D7: 8 | E7: 8 | F7: =SUM(C7:E7) -> 21
B8: Кількість нових клієнтів | C8: 2 | D8: 4 | E8: 4 | F8: =SUM(C8:E8) -> 10
B9: Кількість втрачених клієнтів або клієнтів, договори з якими розірвано | C9: -1 | D9: -2 | E9: -2 | F9: =SUM(C9:E9) -> -5
B10: Кількість активних клієнтів – кінець періоду | C10: =SUBTOTAL(109,АктивністьКлієнтів[Ім’я сегмента 1]) -> 6 | D10: =SUBTOTAL(109,АктивністьКлієнтів[Ім’я сегмента 2]) -> 10 | E10: =SUBTOTAL(109,АктивністьКлієнтів[Ім’я сегмента 3]) -> 10 | F10: =SUBTOTAL(109,АктивністьКлієнтів[Загалом]) -> 26
A12: Введіть відомості в таблицю "Аналіз прибутковості", починаючи з клітинки праворуч. Подальші вказівки наведено в клітинці A16. | B12: Аналіз прибутковості: | C12: Ім’я сегмента 1 | D12: Ім’я сегмента 2 | E12: Ім’я сегмента 3 | F12: Загалом
B13: Дохід за сегментом | C13: 1,500,000.00₴ | D13: 1,800,000.00₴ | E13: 2,500,000.00₴ | F13: =SUM(АналізПрибутковості[[#This Row],[Ім’я сегмента 1]:[Ім’я сегмента 3]]) -> 5,800,000.00₴
B14: Часткове співвідношення | C14: =+C13/$F$13 -> 26% | D14: =+D13/$F$13 -> 31% | E14: =+E13/$F$13 -> 43% | F14: =SUM(АналізПрибутковості[[#This Row],[Ім’я сегмента 1]:[Ім’я сегмента 3]]) -> 100%
A16: Введіть відомості в таблицю "Собівартість продажів", починаючи з клітинки праворуч. Подальші вказівки наведено в клітинці A23. | B16: Собівартість продажів: | C16: Ім’я сегмента 1 | D16: Ім’я сегмента 2 | E16: Ім’я сегмента 3 | F16: Загалом
B17: Поточні витрати на обслуговування та підтримку | C17: 1,000,000.00₴ | D17: 1,400,000.00₴ | E17: 1,400,000.00₴ | F17: =SUM(C17:E17) -> 3,800,000.00₴
B18: Інші прямі витрати на обслуговування клієнтів | C18: 200,000.00₴ | D18: 100,000.00₴ | E18: 100,000.00₴ | F18: =SUM(C18:E18) -> 400,000.00₴
B19: Загальна собівартість продажів | C19: =SUM(C17:C18) -> 1,200,000.00₴ | D19: =SUM(D17:D18) -> 1,500,000.00₴ | E19: =SUM(E17:E18) -> 1,500,000.00₴ | F19: =SUM(F17:F18) -> 4,200,000.00₴
B20: Валовий прибуток | C20: =+C13-C19 -> 300,000.00₴ | D20: =+D13-D19 -> 300,000.00₴ | E20: =+E13-E19 -> 1,000,000.00₴ | F20: =+F13-F19 -> 1,600,000.00₴
B21: Часткове співвідношення | C21: =MAX(0, MIN(1,C20/$F$20)) -> 19% | D21: =MAX(0, MIN(1,D20/$F$20)) -> 19% | E21: =MAX(0, MIN(1,E20/$F$20)) -> 63% | F21: =SUM(C21:E21) -> 100%
A23: Введіть відомості в таблицю "Інші витрати", починаючи з клітинки праворуч. Подальші вказівки наведено в клітинці A31. | B23: Інші витрати: | C23: Ім’я сегмента 1 | D23: Ім’я сегмента 2 | E23: Ім’я сегмента 3 | F23: Загалом
B24: Залучення клієнтів | C24: 105,000.00₴ | D24: 120,000.00₴ | E24: 235,000.00₴ | F24: =SUM(ІншіВитрати[[#This Row],[Ім’я сегмента 1]:[Ім’я сегмента 3]]) -> 460,000.00₴
B25: Клієнтський маркетинг | C25: 150,000.00₴ | D25: 125,000.00₴ | E25: 275,000.00₴ | F25: =SUM(C25:E25) -> 550,000.00₴
B26: Розірвання договорів із клієнтами | C26: 80,000.00₴ | D26: 190,000.00₴ | E26: 140,000.00₴ | F26: =SUM(C26:E26) -> 410,000.00₴
B27: Загальна сума інших витрат на обслуговування клієнтів | C27: =SUM(C24:C26) -> 335,000.00₴ | D27: =SUM(D24:D26) -> 435,000.00₴ | E27: =SUM(E24:E26) -> 650,000.00₴ | F27: =SUM(F24:F26) -> 1,420,000.00₴
B28: Прибутковість клієнтів за сегментом | C28: =+C20-C27 -> -35,000.00₴ | D28: =+D20-D27 -> -135,000.00₴ | E28: =+E20-E27 -> 350,000.00₴ | F28: =SUM(C28:E28) -> 180,000.00₴
B29: Часткове співвідношення | C29: =MAX(0,MIN(1, C28/$F$28)) -> 0% | D29: =MAX(0,MIN(1, D28/$F$28)) -> 0% | E29: =MAX(0,MIN(1, E28/$F$28)) -> 100% | F29: =SUM(C29:E29) -> 100%
A31: Дані в таблиці зведених показників, що починається в клітинці праворуч, оновлюються автоматично. Подальші вказівки наведено в клітинці A37. | B31: Зведені показники: | C31: Ім’я сегмента 1 | D31: Ім’я сегмента 2 | E31: Ім’я сегмента 3 | F31: Тенденція
B32: Середні витрати на залучення клієнтів | C32: =+C24/C8 -> 52,500.00₴ | D32: =+D24/D8 -> 30,000.00₴ | E32: =+E24/E8 -> 58,750.00₴
B33: Середні витрати на розірвання договорів із клієнтами | C33: =-C26/C9 -> 80,000.00₴ | D33: =-D26/D9 -> 95,000.00₴ | E33: =-E26/E9 -> 70,000.00₴
B34: Середні витрати на клієнтський маркетинг | C34: =+C26/АктивністьКлієнтів[[#Totals],[Ім’я сегмента 1]] -> 13,333.33₴ | D34: =+D25/АктивністьКлієнтів[[#Totals],[Ім’я сегмента 2]] -> 12,500.00₴ | E34: =+E25/АктивністьКлієнтів[[#Totals],[Ім’я сегмента 3]] -> 27,500.00₴
B35: Середній прибуток (збитки) на клієнта | C35: =+C29/АктивністьКлієнтів[[#Totals],[Ім’я сегмента 1]] -> 0.00₴ | D35: =+D28/АктивністьКлієнтів[[#Totals],[Ім’я сегмента 2]] -> -13,500.00₴ | E35: =+E28/АктивністьКлієнтів[[#Totals],[Ім’я сегмента 3]] -> 35,000.00₴
A37: Звичайну стовпчасту діаграму зі Зведені показники за сегментом клієнтів наведено в клітинці праворуч. | B37: Звичайну стовпчасту діаграму зі Зведені показники за сегментом клієнтів наведено в цій клітинці.
